fUST/lending_fUST_20250519
["ID","MTS","AMOUNT","RATE_DAILY","PERIOD"]
[361625686,1747648243351,-406.92018782,0.00017728,2]
[361625688,1747648243360,-406.92018782,0.00018003,2]
[361625690,1747648243369,-406.92018782,0.00018279,2]
[361625692,1747648243379,-207.4,0.00018401,2]
[361625694,1747648243389,-406.92018782,0.00018555,2]
[361625696,1747648243398,-214.93799048,0.00018651,2]
[361625698,1747648243407,-406.92018782,0.00018831,2]
[361625700,1747648243416,-12638.53552368,0.00018849,2]
[361625702,1747648243426,-212.35735062,0.00018849,2]
[361625704,1747648243435,-406.92018782,0.00019107,2]
[361625706,1747648243444,-173.22,0.00019287,2]
[361625708,1747648243454,-406.92018782,0.00019383,2]
[361625710,1747648243464,-500.0,0.00019534,2]
[361625712,1747648243473,-500.0,0.00019561,2]
[361625714,1747648243482,-500.0,0.00019589,2]
[361625717,1747648243492,-837.9808055,0.00019599,2]
[361625718,1747648243502,-151.0,0.00019599,2]
[361625721,1747648243513,-151.0,0.00019616,2]
[361625723,1747648243522,-151.0,0.00019616,2]
[361625725,1747648243531,-151.0,0.00019616,2]
[361625727,1747648243541,-264.79745245,0.00019616,2]
[361625729,1747648243550,-406.92018782,0.00019659,2]
[361625731,1747648243565,-215.0738,0.0001977,2]
[361625733,1747648243581,-649.57186558,0.00019855,2]
[361625735,1747648243591,-422.59250115,0.0001993,2]
[361625737,1747648243600,-998.68447496,0.0001993,2]
[361625739,1747648243610,-160.0,0.0001993,2]
[361625741,1747648243619,-406.92018782,0.00019934,2]
[361625743,1747648243629,-214.93799044,0.00019963,2]
[361625745,1747648243639,-157.156269,0.00019999,2]
[361625747,1747648243648,-151.0,0.00019999,2]
[361625749,1747648243657,-151.0,0.00019999,2]
[361625751,1747648243666,-152.24358,0.00019999,2]
[361625753,1747648243676,-151.0,0.00019999,2]
[361625755,1747648243685,-151.0,0.00019999,2]
[361625757,1747648243695,-2246.93615842,0.0002,2]
[361625759,1747648243704,-224.231547,0.0002,2]
[361625761,1747648243713,-224.231547,0.0002,2]
[361625763,1747648243723,-229.782918,0.0002,2]
[361625765,1747648243731,-229.782918,0.0002,2]
[361625767,1747648243741,-407.37505274,0.0002,2]
[361625769,1747648243750,-155.66475,0.0002,2]
[361625771,1747648243759,-151.0,0.0002,2]
[361625773,1747648243769,-151.617335,0.0002,2]
[361625775,1747648243781,-151.554944,0.0002,2]
[361625777,1747648243791,-151.0,0.0002,2]
[361625779,1747648243801,-1746.860247,0.0002,2]
[361625781,1747648243810,-1746.860247,0.0002,2]
[361625783,1747648243820,-153.670881,0.0002,2]
[361625785,1747648243830,-151.0,0.0002,2]
[361625787,1747648243839,-151.0,0.0002,2]
[361625789,1747648243849,-157.86,0.0002,2]
[361625791,1747648243858,-510.005321,0.00020187,2]
[361625793,1747648243867,-151.0,0.00020187,2]
[361625795,1747648243877,-266.501829,0.00020187,2]
[361625797,1747648243886,-151.0,0.00020193,2]
[361625799,1747648243895,-151.0,0.00020193,2]
[361625801,1747648243905,-151.0,0.00020193,2]
[361625803,1747648243914,-369.787258,0.00020193,2]
[361625805,1747648243923,-196.42223,0.00020193,2]
[361625807,1747648243933,-196.42223,0.00020193,2]
[361625809,1747648243943,-369.787258,0.00020193,2]
[361625812,1747648243952,-151.0,0.00020193,2]
[361625814,1747648243962,-151.0,0.00020193,2]
[361625816,1747648243971,-151.0,0.00020195,2]
[361625818,1747648243981,-242.320374,0.00020195,2]
[361625820,1747648243991,-151.842101,0.00020196,2]
[361625822,1747648244001,-151.0,0.00020196,2]
[361625824,1747648244010,-151.0,0.0002021,2]
[361625826,1747648244020,-151.0,0.0002021,2]
[361625828,1747648244030,-151.0,0.0002021,2]
[361625830,1747648244041,-406.92018782,0.0002021,2]
[361625832,1747648244050,-218.0,0.00020274,3]
[361625834,1747648244059,-151.0,0.00020284,2]
[361625836,1747648244069,-151.0,0.00020284,2]
[361625838,1747648244078,-151.0,0.00020284,2]
[361625840,1747648244087,-152.323215,0.00020284,2]
[361625842,1747648244097,-151.0,0.00020284,2]
[361625844,1747648244106,-151.0,0.00020299,2]
[361625846,1747648244115,-151.0,0.00020299,2]
[361625848,1747648244125,-151.0,0.00020486,2]
[361625850,1747648244136,-151.0,0.00020486,2]
[361625852,1747648244146,-151.0,0.00020486,2]
[361625854,1747648244156,-406.92018782,0.00020486,3]
[361625856,1747648244166,-370.9833624,0.0002068,2]
[361625858,1747648244176,-406.92018782,0.00020762,3]
[361625860,1747648244185,-160.1640952,0.00020822,2]
[361625862,1747648244194,-150.239,0.00020918,2]
[361625864,1747648244206,-2500.0,0.00021,2]
[361625866,1747648244215,-2002.03505489,0.00021,2]
[361625869,1747648244224,-151.0,0.00021,2]
[361625871,1747648244233,-406.92018782,0.00021038,4]
[361625872,1747648244246,-223.0315306,0.00021139,2]
[361625875,1747648244256,-151.0,0.00021229,2]
[361625877,1747648244265,-214.93799044,0.00021276,2]
[361625879,1747648244275,-406.92018782,0.00021314,5]
[361625881,1747648244287,-510.005321,0.00021383,2]
[361625882,1747648244296,-151.0,0.00021383,2]
[361625884,1747648244306,-406.92018782,0.0002159,5]
[361625887,1747648244316,-3614.49861743,0.0002159,2]
[361625890,1747648244334,-2517.45040926,0.0002159,2]
[361625892,1747648244344,-151.0,0.0002159,2]
[361625909,1747648244484,-151.0,0.0002159,2]
[361625911,1747648244503,-151.0,0.0002159,2]
[361625913,1747648244512,-369.787258,0.0002159,2]
[361625915,1747648244522,-196.42223,0.0002159,2]
[361625917,1747648244533,-369.787258,0.0002159,2]
[361625919,1747648244542,-196.42223,0.0002159,2]
[361625921,1747648244551,-151.0,0.0002159,2]
[361625923,1747648244561,-151.0,0.0002159,2]
[361625925,1747648244570,-500.0,0.00021624,2]
[361625927,1747648244579,-406.42956364,0.00021624,2]
[361625929,1747648244590,-500.0,0.00021624,2]
[361625932,1747648244599,-574.29804023,0.00021624,2]
[361625934,1747648244609,-500.0,0.00021624,2]
[361625936,1747648244619,-500.0,0.00021624,2]
[361625938,1747648244628,-500.0,0.00021624,2]
[361625940,1747648244637,-500.0,0.00021624,2]
[361625942,1747648244646,-500.0,0.00021624,2]
[361625944,1747648244656,-500.0,0.00021624,2]
[361625946,1747648244666,-500.0,0.00021624,2]
[361625948,1747648244676,-500.0,0.00021624,2]
[361625950,1747648244685,-500.0,0.00021624,2]
[361625951,1747648244695,-500.0,0.00021624,2]
[361625953,1747648244704,-500.0,0.00021624,2]
[361625955,1747648244714,-500.0,0.00021624,2]
[361625957,1747648244723,-500.0,0.00021624,2]
[361625959,1747648244732,-541.90398378,0.00021624,2]
[361625961,1747648244742,-500.0,0.00021624,2]
[361625964,1747648244754,-500.0,0.00021624,2]
[361625966,1747648244763,-500.0,0.00021624,2]
[361625968,1747648244772,-500.0,0.00021624,2]
[361625970,1747648244782,-998.68447496,0.00021625,3]
[361625972,1747648244793,-17874.44328618,0.00021625,3]
[361625974,1747648244802,-201.97030036,0.00021625,2]
[361625976,1747648244811,-500.0,0.00021625,2]
[361625978,1747648244819,-600.0,0.00021625,2]
[361625980,1747648244828,-151.0,0.00021644,2]
[361625982,1747648244838,-260.974782,0.00021658,2]
[361625984,1747648244847,-12638.53552368,0.00021658,3]
[361625986,1747648244856,-212.35735062,0.00021658,3]
[361625988,1747648244865,-500.0,0.00021664,2]
[361625990,1747648244874,-151.0,0.00021809,2]
[361625991,1747648244883,-1746.860247,0.00021809,2]
[361625993,1747648244893,-1746.860247,0.00021809,2]
[361625995,1747648244903,-406.92018782,0.00021866,6]
[361625998,1747648244912,-151.0,0.00021999,7]
[361626000,1747648244922,-151.0,0.00021999,7]
[361626001,1747648244931,-151.0,0.00021999,2]
[361626004,1747648244941,-160.0,0.00021999,3]
[361626006,1747648244951,-151.0,0.00022,7]
[361626007,1747648244961,-2032.48,0.00022,7]
[361626009,1747648244970,-151.0,0.00022,7]
[361626011,1747648244981,-151.0,0.00022,7]
[361626013,1747648244990,-151.0,0.00022,7]
[361626015,1747648244999,-151.0,0.00022,7]
[361626017,1747648245009,-186.0,0.00022,2]
[361626019,1747648245018,-151.0,0.00022,7]
[361626021,1747648245027,-151.0,0.00022,7]
[361626023,1747648245038,-362.0,0.00022,2]
[361626026,1747648245047,-151.0,0.00022107,7]
[361626028,1747648245057,-151.0,0.00022107,7]
[361626030,1747648245066,-406.92018782,0.00022141,6]
[361626032,1747648245076,-1200.0,0.00022173,2]
[361626034,1747648245085,-362.0,0.00022192,7]
[361626036,1747648245094,-151.0,0.00022377,7]
[361626038,1747648245103,-1746.860247,0.00022377,2]
[361626040,1747648245113,-1746.860247,0.00022377,2]
[361626042,1747648245122,-155.322716,0.00022378,7]
[361626044,1747648245131,-151.0,0.00022378,7]
[361626046,1747648245140,-231.184767,0.00022378,7]
[361626048,1747648245150,-151.0,0.00022378,7]
[361626050,1747648245159,-369.787258,0.00022378,7]
[361626052,1747648245169,-196.42223,0.00022378,7]
[361626054,1747648245178,-369.787258,0.00022378,7]
[361626056,1747648245186,-196.42223,0.00022378,7]
[361626058,1747648245197,-151.0,0.00022378,7]
[361626060,1747648245207,-151.0,0.00022378,7]
[361626061,1747648245216,-151.0,0.00022378,7]
[361626063,1747648245225,-151.0,0.00022378,7]
[361626065,1747648245235,-151.0,0.00022378,7]
[361626067,1747648245246,-151.0,0.00022378,7]
[361626069,1747648245255,-151.0,0.00022379,7]
[361626071,1747648245265,-151.0,0.00022379,7]
[361626073,1747648245274,-151.0,0.00022379,7]
[361626075,1747648245284,-151.0,0.00022379,7]
[361626077,1747648245294,-151.0,0.00022379,7]
[361626079,1747648245304,-151.0,0.00022379,7]
[361626081,1747648245313,-224.231547,0.00022379,7]
[361626083,1747648245322,-224.231547,0.00022379,7]
[361626084,1747648245331,-151.0,0.00022379,7]
[361626086,1747648245341,-151.0,0.00022379,7]
[361626088,1747648245350,-177.668061,0.00022379,7]
[361626090,1747648245360,-151.0,0.00022379,7]
[361626092,1747648245370,-151.0,0.00022379,7]
[361626093,1747648245379,-229.782918,0.00022379,7]
[361626095,1747648245388,-229.782918,0.00022379,7]
[361626097,1747648245397,-151.0,0.00022379,7]
[361626099,1747648245407,-153.364387,0.00022379,7]
[361626100,1747648245416,-151.0,0.00022379,7]
[361626102,1747648245425,-216.18431,0.00022379,7]
[361626104,1747648245434,-216.18431,0.00022379,7]
[361626106,1747648245443,-216.18431,0.00022379,7]
[361626107,1747648245452,-475.389218,0.00022379,7]
[361626109,1747648245462,-475.389218,0.00022379,7]
[361626111,1747648245472,-475.389218,0.00022379,7]
[361626113,1747648245481,-475.389218,0.00022379,7]
[361626115,1747648245491,-475.389218,0.00022379,7]
[361626117,1747648245502,-475.389218,0.00022379,7]
[361626118,1747648245511,-151.0,0.00022379,7]
[361626120,1747648245521,-186.345891,0.00022379,7]
[361626122,1747648245532,-236.824729,0.00022379,7]
[361626124,1747648245542,-159.837856,0.00022379,7]
[361626126,1747648245552,-152.089979,0.00022379,7]
[361626127,1747648245561,-151.0,0.00022379,7]
[361626129,1747648245571,-151.0,0.00022379,7]
[361626131,1747648245581,-151.592481,0.00022379,7]
[361626133,1747648245592,-151.0,0.00022379,7]
[361626135,1747648245601,-151.0,0.00022379,7]
[361626136,1747648245611,-246.322393,0.00022379,7]
[361626138,1747648245620,-151.0,0.00022379,7]
[361626140,1747648245630,-151.0,0.00022379,7]
[361626142,1747648245639,-153.343907,0.00022379,7]
[361626144,1747648245649,-510.005321,0.00022379,7]
[361626145,1747648245658,-510.005321,0.00022379,7]
[361626147,1747648245667,-510.005321,0.00022379,7]
[361626149,1747648245677,-510.005321,0.00022379,7]
[361626151,1747648245687,-510.005321,0.00022379,7]
[361626153,1747648245697,-510.005321,0.00022379,7]
[361626154,1747648245707,-151.0,0.00022379,7]
[361626156,1747648245716,-151.0,0.00022379,7]
[361626158,1747648245725,-152.997867,0.00022379,7]
[361626160,1747648245735,-151.0,0.00022379,7]
[361626162,1747648245745,-151.0,0.00022379,7]
[361626163,1747648245754,-369.787258,0.00022379,7]
[361626165,1747648245763,-369.787258,0.00022379,7]
[361626167,1747648245773,-196.42223,0.00022379,7]
[361626169,1747648245783,-196.42223,0.00022379,7]
[361626171,1747648245793,-369.787258,0.00022379,7]
[361626173,1747648245802,-369.787258,0.00022379,7]
[361626175,1747648245812,-196.42223,0.00022379,7]
[361626176,1747648245821,-196.42223,0.00022379,7]
[361626178,1747648245831,-151.0,0.00022379,7]
[361626180,1747648245840,-151.0,0.00022379,7]
[361626182,1747648245853,-151.0,0.00022379,7]
[361626184,1747648245862,-151.0,0.00022379,7]
[361626186,1747648245872,-151.0,0.00022379,7]
[361626187,1747648245881,-151.0,0.00022379,7]
[361626189,1747648245892,-151.0,0.00022379,7]
[361626191,1747648245902,-151.0,0.00022379,7]
[361626193,1747648245911,-276.936087,0.00022379,7]
[361626195,1747648245920,-1746.860247,0.00022379,2]
[361626197,1747648245930,-1746.860247,0.00022379,2]
[361626198,1747648245939,-1746.860247,0.00022379,2]
[361626200,1747648245949,-1746.860247,0.00022379,2]
[361626202,1747648245958,-1746.860247,0.00022379,2]
[361626204,1747648245968,-1746.860247,0.00022379,2]
[361626206,1747648245977,-151.0,0.00022379,7]
[361626208,1747648245987,-151.0,0.00022379,7]
[361626210,1747648245996,-151.0,0.00022379,7]
[361626211,1747648246005,-151.0,0.00022379,7]
[361626213,1747648246015,-160.0,0.00022379,7]
[361626215,1747648246024,-151.0,0.00022379,7]
[361626217,1747648246034,-151.0,0.00022379,7]
[361626219,1747648246043,-250.863,0.00022379,7]
[361626221,1747648246052,-151.0,0.00022379,7]
[361626222,1747648246061,-151.0,0.00022379,7]
[361626224,1747648246071,-151.0,0.00022379,7]
[361626226,1747648246080,-151.0,0.00022379,7]
[361626228,1747648246090,-294.904834,0.00022379,7]
[361626230,1747648246099,-151.0,0.00022379,7]
[361626232,1747648246108,-151.0,0.00022379,7]
[361626234,1747648246117,-151.0,0.00022379,7]
[361626235,1747648246127,-151.0,0.00022379,2]
[361626237,1747648246136,-277.796165,0.00022379,2]
[361626239,1747648246145,-998.68447496,0.00022379,7]
[361626241,1747648246154,-5900.32484671,0.0002238,2]
[361627276,1747648536582,-5000.0,0.00016274,2]
[361627277,1747648536602,-165.0,0.00016438,3]
[361627278,1747648536624,-300.0,0.00016509,2]
[361627279,1747648536645,-241.0,0.00016509,2]
[361627280,1747648536668,-500.0,0.00016509,2]
[361627281,1747648536691,-500.0,0.00016509,2]
[361627282,1747648536711,-643.06661699,0.00016509,2]
[361627283,1747648536733,-500.0,0.00016509,2]
[361627284,1747648536756,-500.0,0.00016509,2]
[361627285,1747648536778,-180.00290856,0.00016509,2]
[361627286,1747648536803,-500.0,0.00016509,2]
[361627287,1747648536826,-500.0,0.00016509,2]
[361627288,1747648536848,-519.64300721,0.00016509,2]
[361627289,1747648536873,-500.0,0.00016509,2]
[361627290,1747648536894,-273.58434359,0.00016509,2]
[361627291,1747648536917,-500.0,0.00016509,2]
[361627292,1747648536941,-500.0,0.00016509,2]
[361627293,1747648536965,-500.0,0.00016509,2]
[361627294,1747648536989,-500.0,0.00016509,2]
[361627295,1747648537014,-500.0,0.00016509,2]
[361627296,1747648537040,-500.0,0.00016509,2]
[361627297,1747648537064,-500.0,0.00016509,2]
[361627298,1747648537089,-500.0,0.00016509,2]
[361627299,1747648537112,-365.62257218,0.00016509,2]
[361627300,1747648537136,-500.0,0.00016509,2]
[361627301,1747648537158,-500.0,0.00016509,2]
[361627302,1747648537184,-500.0,0.00016509,2]
[361627303,1747648537208,-500.0,0.00016509,2]
[361627304,1747648537232,-500.0,0.00016509,2]
[361627305,1747648537256,-500.0,0.00016509,2]
[361627306,1747648537280,-500.0,0.00016509,2]
[361627307,1747648537309,-500.0,0.00016509,2]
[361627308,1747648537333,-500.0,0.00016509,2]
[361627309,1747648537355,-500.0,0.00016509,2]
[361627310,1747648537380,-500.0,0.00016509,2]
[361627311,1747648537404,-500.0,0.00016509,2]
[361627312,1747648537426,-500.0,0.00016509,2]
[361627313,1747648537449,-500.0,0.00016509,2]
[361627314,1747648537473,-500.0,0.00016509,2]
[361627315,1747648537497,-500.0,0.00016509,2]
[361627316,1747648537521,-500.0,0.00016509,2]
[361627317,1747648537545,-500.0,0.00016509,2]
[361627318,1747648537570,-500.0,0.00016509,2]
[361627319,1747648537594,-500.0,0.00016509,2]
[361627320,1747648537618,-500.0,0.00016509,2]
[361627321,1747648537642,-500.0,0.00016509,2]
[361627322,1747648537666,-500.0,0.00016509,2]
[361627323,1747648537690,-500.0,0.00016509,2]
[361627324,1747648537713,-500.0,0.00016509,2]
[361627325,1747648537736,-500.0,0.00016509,2]
[361627326,1747648537760,-500.0,0.00016509,2]
[361627327,1747648537784,-500.0,0.00016509,2]
[361627328,1747648537807,-500.0,0.00016509,2]
[361627329,1747648537831,-500.0,0.00016509,2]
[361627330,1747648537854,-500.0,0.00016509,2]
[361627331,1747648537877,-500.0,0.00016509,2]
[361627332,1747648537901,-500.0,0.00016509,2]
[361627333,1747648537925,-500.0,0.00016509,2]
[361627334,1747648537951,-500.0,0.00016509,2]
[361627335,1747648537975,-500.0,0.00016509,2]
[361627336,1747648537999,-500.0,0.00016509,2]
[361627337,1747648538023,-500.0,0.00016509,2]
[361627338,1747648538047,-500.0,0.00016509,2]
[361627339,1747648538071,-500.0,0.00016509,2]
[361627340,1747648538095,-500.0,0.00016509,2]
[361627341,1747648538119,-500.0,0.00016509,2]
[361627342,1747648538142,-500.0,0.00016509,2]
[361627343,1747648538166,-412.118698,0.00016509,2]
[361627344,1747648538190,-500.0,0.00016509,2]
[361627345,1747648538214,-500.0,0.00016509,2]
[361627346,1747648538239,-500.0,0.00016509,2]
[361627347,1747648538263,-500.0,0.00016509,2]
[361627348,1747648538291,-350.0,0.00016509,2]
[361627349,1747648538316,-500.0,0.00016509,2]
[361627350,1747648538340,-500.0,0.00016509,2]
[361627351,1747648538364,-500.0,0.00016509,2]
[361627352,1747648538390,-500.0,0.00016509,2]
[361627353,1747648538413,-500.0,0.00016509,2]
[361627354,1747648538436,-500.0,0.00016509,2]
[361627355,1747648538460,-500.0,0.00016509,2]
[361627356,1747648538481,-50000.0,0.0001651,2]
[361627357,1747648538505,-203.46009391,0.000169,2]
[361627358,1747648546890,5000.0,0.00017,2]
[361627359,1747648562326,5000.0,0.00017,2]
[361627360,1747648565182,96.50175956,0.00016509,2]
[361627364,1747648964529,177.377973,0.00027397,120]
[361627427,1747649436753,-5000.0,0.00013292,2]
[361627428,1747649436763,-257.306211,0.00013699,2]
[361627429,1747649436773,-730.6943011,0.00018228,2]
[361627430,1747649436782,-233.301695,0.00018304,2]
[361627431,1747649436792,-203.46009391,0.000189,2]
[361627432,1747649436802,-160.0,0.00019007,2]
[361627433,1747649436812,-12638.53552368,0.00019007,2]
[361627434,1747649436821,-422.59250115,0.00019008,2]
[361627435,1747649436830,-998.68447496,0.00019008,2]
[361627436,1747649436840,-160.0,0.00019008,2]
[361627437,1747649436849,-500.0,0.00019172,2]
[361627438,1747649436858,-485.06917469,0.00019172,2]
[361627439,1747649436867,-500.0,0.00019172,2]
[361627441,1747649436877,-500.0,0.00019172,2]
[361627443,1747649436886,-500.0,0.00019172,2]
[361627445,1747649436895,-500.0,0.00019172,2]
[361627447,1747649436904,-500.0,0.00019172,2]
[361627449,1747649436913,-300.0,0.00019172,2]
[361627451,1747649436923,-500.0,0.00019172,2]
[361627453,1747649436932,-500.0,0.00019172,2]
[361627455,1747649436941,-476.2118698,0.00019172,2]
[361627457,1747649436950,-500.0,0.00019172,2]
[361627459,1747649436959,-217.56035257,0.00019172,2]
[361627461,1747649436969,-500.0,0.00019172,2]
[361627463,1747649436978,-3902.50012716,0.00019173,2]
[361627465,1747649436992,-1200.0,0.00019173,2]
[361627468,1747649437003,-314.54692683,0.00019173,2]
[361627492,1747649438069,-4652.89057922,0.00019173,2]
[361627493,1747649438081,-7082.877669,0.00019173,2]
[361627494,1747649438092,-821.1406638,0.00019173,2]
[361627495,1747649438103,-528.78757581,0.00019173,2]
[361627496,1747649438115,-501.87708855,0.00019173,2]
[361627497,1747649438126,-9249.06800389,0.00019173,2]
[361627498,1747649438137,-3487.097145,0.00019173,2]
[361627499,1747649438176,-18259.21422074,0.00019173,2]
[361627500,1747649438185,-203.46009391,0.00019173,2]
[361627501,1747649438194,-207.0,0.00019178,3]
[361627502,1747649438203,-203.46009391,0.00019445,2]
[361627503,1747649438213,-207.4,0.00019575,2]
[361627504,1747649438222,-151.0,0.00019599,2]
[361627505,1747649438231,-183.826335,0.00019599,2]
[361627506,1747649438240,-183.826335,0.00019599,2]
[361627507,1747649438249,-156.21604,0.00019599,2]
[361627508,1747649438258,-203.46009391,0.00019718,2]
[361627509,1747649438268,-203.46009391,0.00019991,2]
[361627510,1747649438277,-154.102076,0.00019999,2]
[361627511,1747649438287,-151.0,0.0002,2]
[361627512,1747649438296,-183.826335,0.0002,2]
[361627513,1747649438306,-183.826335,0.0002,2]
[361627514,1747649438315,-157.86,0.0002,2]
[361627515,1747649438325,-257.306211,0.00020187,2]
[361627516,1747649438334,-203.46009391,0.00020264,3]
[361627517,1747649438343,-203.46009391,0.00020536,3]
[361627518,1747649438354,-203.46009391,0.00020809,4]
[361627519,1747649438364,-215.0738,0.00020944,2]
[361627520,1747649438373,-203.46009391,0.00021082,4]
[361627521,1747649438383,-203.46009391,0.00021355,5]
[361627522,1747649438392,-203.46009391,0.00021627,5]
[361627523,1747649438402,-151.0,0.00021658,2]
[361627524,1747649438411,-183.826335,0.00021658,2]
[361627525,1747649438421,-183.826335,0.00021658,2]
[361627526,1747649438430,-500.0,0.00021664,2]
[361627527,1747649438439,-203.46009391,0.000219,6]
[361627528,1747649438448,-754.182725,0.00021932,2]
[361627529,1747649438458,-186.0,0.00022,2]
[361627530,1747649438467,-362.0,0.00022,2]
[361627531,1747649438476,-203.46009391,0.00022173,6]
[361627532,1747649438485,-362.0,0.00022192,7]
[361627533,1747649438494,-214.93799044,0.0002228,2]
[361627534,1747649438503,-266.98902637,0.00022313,2]
[361627535,1747649438513,-151.0,0.00022377,7]
[361627536,1747649438522,-183.826335,0.00022377,7]
[361627537,1747649438531,-183.826335,0.00022377,7]
[361627538,1747649438540,-151.0,0.00022379,7]
[361627539,1747649438549,-151.0,0.00022379,7]
[361627540,1747649438558,-183.826335,0.00022379,7]
[361627541,1747649438567,-183.826335,0.00022379,7]
[361627542,1747649438576,-183.826335,0.00022379,7]
[361627543,1747649438585,-183.826335,0.00022379,7]
[361627544,1747649438599,-323.51515937,0.0002238,2]
[361627545,1747649438609,-2187.66656188,0.0002238,2]
[361627613,1747649446569,-2e-08,0.00017927,2]
[361628013,1747649955642,177.377973,0.00027397,120]
[361628020,1747650613724,500.0,0.00024917,30]
[361628055,1747650632493,-2247.49666288,0.00013426,2]
[361628056,1747650632508,-1597.50615178,0.00013426,2]
[361628080,1747650638126,-608.92218227,0.00013426,2]
[361628081,1747650638139,-546.07500307,0.00013426,2]
[361628082,1747650638148,-7.96377672,0.00013699,2]
[361628083,1747650638181,-223.61181228,0.00013699,2]
[361628085,1747650638190,-342.23130186,0.00015,2]
[361628086,1747650638199,-155.0,0.00016438,3]
[361628087,1747650638210,-570.0792348,0.00017511,2]
[361628088,1747650638219,-10697.48579346,0.00017899,2]
[361628089,1747650638228,-203.46009391,0.000189,2]
[361628090,1747650638239,-5018.42150832,0.00019,7]
[361628091,1747650638248,-212.35735062,0.00019068,2]
[361628093,1747650638257,-160.0,0.00019068,2]
[361628094,1747650638266,-422.59250115,0.00019068,2]
[361628096,1747650638275,-998.68447496,0.00019068,2]
[361628097,1747650638284,-203.46009391,0.00019567,2]
[361628098,1747650638294,-1000.0,0.00019998,3]
[361628099,1747650638305,-500.0,0.00019999,2]
[361628100,1747650638316,-272.74891524,0.00019999,2]
[361628101,1747650638325,-500.0,0.00019999,2]
[361628102,1747650638335,-500.0,0.00019999,2]
[361628103,1747650638345,-500.0,0.00019999,2]
[361628104,1747650638354,-500.0,0.00019999,2]
[361628105,1747650638367,-200.0,0.00019999,2]
[361628106,1747650638376,-500.0,0.00019999,2]
[361628107,1747650638385,-500.0,0.00019999,2]
[361628108,1747650638394,-383.53341446,0.00019999,2]
[361628109,1747650638405,-500.0,0.00019999,2]
[361628110,1747650638415,-198.5695548,0.00019999,2]
[361628111,1747650638428,-249.16050682,0.00019999,2]
[361628112,1747650638437,-500.0,0.00019999,2]
[361628113,1747650638447,-500.0,0.00019999,2]
[361628114,1747650638457,-201.28441275,0.00019999,2]
[361628115,1747650638467,-500.0,0.00019999,2]
[361628116,1747650638476,-266.02517271,0.00019999,2]
[361628117,1747650638486,-500.0,0.00019999,2]
[361628118,1747650638497,-500.0,0.00019999,2]
[361628119,1747650638507,-500.0,0.00019999,2]
[361628120,1747650638517,-500.0,0.00019999,2]
[361628121,1747650638526,-574.29804023,0.00019999,2]
[361628122,1747650638536,-500.0,0.00019999,2]
[361628123,1747650638545,-11264.50233284,0.0002,3]
[361628124,1747650638558,-6609.94095334,0.0002,3]
[361628125,1747650638567,-111.33951858,0.0002,2]
[361628126,1747650638582,-1147.5066,0.0002,2]
[361628127,1747650638594,-3065.85359939,0.0002,2]
[361628128,1747650638605,-1856.98794325,0.0002,2]
[361628146,1747650640359,-1115.60043417,0.0002,2]
[361628148,1747650642240,-134.86377095,0.0002,2]
[361628552,1747650646343,-6735.34385971,0.0002,2]
[361628554,1747650646355,-350.21161888,0.0002,2]
[361628571,1747650646510,-394.5536831,0.0002,2]